[Event "Early-Titled-Tuesday-Blitz-July-09-2024"]
[Site "Chess.com"]
[Date "2024.07.09"]
[Round "3"]
[White "bubeliang"]
[Black "zverr1"]
[Result "1-0"]
[WhiteElo "2828"]
[BlackElo "2561"]
[TimeControl "180+1"]
[EndTime "8:29:15 PDT"]
[Termination "bubeliang won on time"]

1. e4 {[%clk 0:03:00.9]} 1... c5 {[%clk 0:02:59.7]} 2. c3 {[%clk 0:02:59.9]}
2... g6 {[%clk 0:02:59.5]} 3. d4 {[%clk 0:02:59.7]} 3... cxd4 {[%clk 0:03:00.4]}
4. cxd4 {[%clk 0:03:00.5]} 4... d5 {[%clk 0:03:00.3]} 5. e5 {[%clk 0:02:58.1]}
5... a6 {[%clk 0:02:59.9]} 6. h3 {[%clk 0:02:55.3]} 6... Nc6 {[%clk 0:02:59.8]}
7. Nf3 {[%clk 0:02:55.2]} 7... Bg7 {[%clk 0:02:59.5]} 8. Bd3 {[%clk 0:02:54.6]}
8... f6 {[%clk 0:02:59.8]} 9. O-O {[%clk 0:02:53.7]} 9... fxe5 {[%clk
0:02:56.2]} 10. dxe5 {[%clk 0:02:54.6]} 10... Nxe5 {[%clk 0:02:53.2]} 11. Nxe5
{[%clk 0:02:55.5]} 11... Bxe5 {[%clk 0:02:53.3]} 12. Re1 {[%clk 0:02:55.9]}
12... Bg7 {[%clk 0:02:52.9]} 13. Nc3 {[%clk 0:02:52.9]} 13... Nf6 {[%clk
0:02:51.9]} 14. Qe2 {[%clk 0:02:52.4]} 14... e6 {[%clk 0:02:39.6]} 15. Bf4
{[%clk 0:02:51.9]} 15... O-O {[%clk 0:02:39.3]} 16. Be5 {[%clk 0:02:52]} 16...
Bd7 {[%clk 0:02:38.3]} 17. Rac1 {[%clk 0:02:51.3]} 17... Qe7 {[%clk 0:02:32]}
18. Qe3 {[%clk 0:02:46.6]} 18... Rfe8 {[%clk 0:02:16.1]} 19. Qd4 {[%clk
0:02:43.6]} 19... Qf7 {[%clk 0:02:11.2]} 20. Ne2 {[%clk 0:02:42.6]} 20... Rac8
{[%clk 0:02:09]} 21. b4 {[%clk 0:02:35]} 21... Nh5 {[%clk 0:02:01.3]} 22. f4
{[%clk 0:02:26]} 22... Nf6 {[%clk 0:01:35]} 23. Qe3 {[%clk 0:02:19.1]} 23... Bc6
{[%clk 0:01:32.6]} 24. Nd4 {[%clk 0:02:17.5]} 24... Bd7 {[%clk 0:01:25.4]} 25.
Nf3 {[%clk 0:02:15.5]} 25... Bc6 {[%clk 0:01:21.8]} 26. Qd4 {[%clk 0:02:13.7]}
26... Ne4 {[%clk 0:01:15.5]} 27. Bxg7 {[%clk 0:02:04.8]} 27... Qxg7 {[%clk
0:01:13.8]} 28. Ne5 {[%clk 0:02:05.1]} 28... Nd6 {[%clk 0:00:52.6]} 29. a3
{[%clk 0:02:01.4]} 29... Bd7 {[%clk 0:00:47.9]} 30. Qb6 {[%clk 0:01:59.9]} 30...
Nc4 {[%clk 0:00:28.6]} 31. Nxc4 {[%clk 0:01:44.9]} 31... dxc4 {[%clk 0:00:28.6]}
32. Bxc4 {[%clk 0:01:44.1]} 32... Rc6 {[%clk 0:00:26.4]} 33. Qe3 {[%clk
0:01:33.2]} 33... Rec8 {[%clk 0:00:23.8]} 34. Be2 {[%clk 0:01:33.6]} 34... Rxc1
{[%clk 0:00:22.8]} 35. Rxc1 {[%clk 0:01:34.5]} 35... Rxc1+ {[%clk 0:00:23.4]}
36. Qxc1 {[%clk 0:01:35.4]} 36... Qd4+ {[%clk 0:00:23.9]} 37. Kh2 {[%clk
0:01:35.5]} 37... Bc6 {[%clk 0:00:21.3]} 38. Kg3 {[%clk 0:01:21.7]} 38... e5
{[%clk 0:00:14.1]} 39. Qc4+ {[%clk 0:01:21.4]} 39... Kg7 {[%clk 0:00:09.7]} 40.
Qxd4 {[%clk 0:01:21.5]} 40... exd4 {[%clk 0:00:10.1]} 41. Bd3 {[%clk 0:01:22.4]}
41... Kf6 {[%clk 0:00:07.1]} 42. Kf2 {[%clk 0:01:21.7]} 42... h6 {[%clk
0:00:05.9]} 43. g4 {[%clk 0:01:21.9]} 43... g5 {[%clk 0:00:06.1]} 44. Kg3 {[%clk
0:01:21.7]} 44... Bd5 {[%clk 0:00:05.5]} 45. h4 {[%clk 0:01:21.3]} 45... gxf4+
{[%clk 0:00:02.2]} 46. Kxf4 {[%clk 0:01:21.3]} 46... Bc6 {[%clk 0:00:03.1]} 47.
g5+ {[%clk 0:01:20.4]} 47... hxg5+ {[%clk 0:00:03.8]} 48. hxg5+ {[%clk
0:01:21.3]} 48... Ke6 {[%clk 0:00:04.4]} 49. Bc4+ {[%clk 0:01:21.4]} 49... Ke7
{[%clk 0:00:01.8]} 50. Ke5 {[%clk 0:01:21.5]} 50... d3 {[%clk 0:00:01]} 51. Bxd3
{[%clk 0:01:21.8]} 51... Kf7 {[%clk 0:00:01.8]} 52. Bf5 {[%clk 0:01:22.4]} 52...
a5 {[%clk 0:00:01.3]} 53. bxa5 {[%clk 0:01:22.1]} 53... Bb5 {[%clk 0:00:01.4]}
54. Kd6 {[%clk 0:01:22.3]} 54... Ba6 {[%clk 0:00:01.9]} 55. Kc7 {[%clk
0:01:22.6]} 55... Be2 {[%clk 0:00:02.2]} 56. Be4 {[%clk 0:01:22.6]} 1-0

[Event "Early-Titled-Tuesday-Blitz-July-09-2024"]
[Site "Chess.com"]
[Date "2024.07.09"]
[Round "3"]
[White "DucksParadise"]
[Black "Cheer_Down"]
[Result "0-1"]
[WhiteElo "2617"]
[BlackElo "2435"]
[TimeControl "180+1"]
[EndTime "8:29:17 PDT"]
[Termination "Cheer_Down won on time"]

1. g3 {[%clk 0:03:00.9]} 1... d5 {[%clk 0:02:59.8]} 2. Bg2 {[%clk 0:03:00.3]}
2... e5 {[%clk 0:03:00]} 3. e3 {[%clk 0:02:59.8]} 3... Nc6 {[%clk 0:02:58]} 4.
Ne2 {[%clk 0:02:58.2]} 4... h5 {[%clk 0:02:57.4]} 5. h3 {[%clk 0:02:57.9]} 5...
Nf6 {[%clk 0:02:53.5]} 6. b3 {[%clk 0:02:56.4]} 6... Bd6 {[%clk 0:02:51.3]} 7.
Bb2 {[%clk 0:02:55.7]} 7... Ne7 {[%clk 0:02:51.8]} 8. d4 {[%clk 0:02:54.6]} 8...
e4 {[%clk 0:02:49.6]} 9. c4 {[%clk 0:02:53.7]} 9... c6 {[%clk 0:02:50]} 10. Qd2
{[%clk 0:02:49.3]} 10... Ng6 {[%clk 0:02:37.3]} 11. Ba3 {[%clk 0:02:45]} 11...
Bxa3 {[%clk 0:02:30]} 12. Nxa3 {[%clk 0:02:45.9]} 12... a6 {[%clk 0:02:25.2]}
13. Qb4 {[%clk 0:02:29.7]} 13... b5 {[%clk 0:02:20.7]} 14. cxd5 {[%clk
0:02:25.8]} 14... cxd5 {[%clk 0:02:18.3]} 15. Rc1 {[%clk 0:02:21.7]} 15... Qe7
{[%clk 0:02:14.8]} 16. Qxe7+ {[%clk 0:02:19.4]} 16... Kxe7 {[%clk 0:02:15.2]}
17. Rc7+ {[%clk 0:02:12.1]} 17... Bd7 {[%clk 0:02:14.4]} 18. Kd2 {[%clk
0:02:06.5]} 18... Rhc8 {[%clk 0:02:12.8]} 19. Rhc1 {[%clk 0:02:05.9]} 19... Kd6
{[%clk 0:02:11.1]} 20. R7c5 {[%clk 0:01:58.3]} 20... Be6 {[%clk 0:02:02.7]} 21.
Nc2 {[%clk 0:01:36.1]} 21... Nd7 {[%clk 0:01:54.1]} 22. Rxc8 {[%clk 0:01:35.4]}
22... Rxc8 {[%clk 0:01:53.9]} 23. Nb4 {[%clk 0:01:27.2]} 23... Rxc1 {[%clk
0:01:53.3]} 24. Nxc1 {[%clk 0:01:28.1]} 24... Nb8 {[%clk 0:01:53.4]} 25. h4
{[%clk 0:01:18.8]} 25... Ne7 {[%clk 0:01:49.5]} 26. Ne2 {[%clk 0:01:17.1]} 26...
Ng6 {[%clk 0:01:45.1]} 27. f3 {[%clk 0:01:11.6]} 27... f5 {[%clk 0:01:43.8]} 28.
Nf4 {[%clk 0:01:06.1]} 28... Nxf4 {[%clk 0:01:43.4]} 29. gxf4 {[%clk 0:01:07]}
29... a5 {[%clk 0:01:38.7]} 30. Nc2 {[%clk 0:01:05.7]} 30... Nc6 {[%clk
0:01:37.1]} 31. fxe4 {[%clk 0:00:57.7]} 31... dxe4 {[%clk 0:01:34.4]} 32. Bf1
{[%clk 0:00:56.5]} 32... b4 {[%clk 0:01:26.9]} 33. Be2 {[%clk 0:00:55.8]} 33...
g6 {[%clk 0:01:26.6]} 34. Bb5 {[%clk 0:00:52.3]} 34... Ne7 {[%clk 0:01:21]} 35.
Bc4 {[%clk 0:00:49.2]} 35... Bd5 {[%clk 0:01:20.2]} 36. Ne1 {[%clk 0:00:18.4]}
36... Nc8 {[%clk 0:01:16.6]} 37. Nc2 {[%clk 0:00:17]} 37... Nb6 {[%clk
0:01:14.9]} 38. Bb5 {[%clk 0:00:15.3]} 38... Bc6 {[%clk 0:01:11.9]} 39. Bxc6
{[%clk 0:00:13.2]} 39... Kxc6 {[%clk 0:01:12]} 40. a3 {[%clk 0:00:10.8]} 40...
Nd5 {[%clk 0:01:11.9]} 41. axb4 {[%clk 0:00:10]} 41... axb4 {[%clk 0:01:12.5]}
42. Ne1 {[%clk 0:00:07.7]} 42... Kb5 {[%clk 0:01:10.7]} 43. Nc2 {[%clk
0:00:07.5]} 43... Nc3 {[%clk 0:01:06.1]} 44. Ne1 {[%clk 0:00:04.9]} 44... Nd5
{[%clk 0:01:05]} 45. Nc2 {[%clk 0:00:05.1]} 45... Ne7 {[%clk 0:01:03.8]} 46. Ke2
{[%clk 0:00:03.4]} 46... Nc6 {[%clk 0:01:02.1]} 47. d5 {[%clk 0:00:02]} 47...
Na5 {[%clk 0:01:02.2]} 0-1

[Event "Early-Titled-Tuesday-Blitz-July-09-2024"]
[Site "Chess.com"]
[Date "2024.07.09"]
[Round "3"]
[White "TioCridineno"]
[Black "CM_rui"]
[Result "1-0"]
[WhiteElo "2421"]
[BlackElo "2576"]
[TimeControl "180+1"]
[EndTime "8:29:19 PDT"]
[Termination "TioCridineno won on time"]

1. e4 {[%clk 0:03:00.9]} 1... e5 {[%clk 0:02:59.2]} 2. Nf3 {[%clk 0:03:00.6]}
2... Nc6 {[%clk 0:02:59.3]} 3. Bb5 {[%clk 0:03:00.1]} 3... a6 {[%clk 0:02:58.8]}
4. Ba4 {[%clk 0:02:59.9]} 4... Nf6 {[%clk 0:02:59.1]} 5. O-O {[%clk 0:02:58.5]}
5... Be7 {[%clk 0:02:58.4]} 6. Re1 {[%clk 0:02:58.3]} 6... b5 {[%clk 0:02:58.8]}
7. Bb3 {[%clk 0:02:58.2]} 7... O-O {[%clk 0:02:59.7]} 8. d4 {[%clk 0:02:58.1]}
8... exd4 {[%clk 0:02:56.1]} 9. e5 {[%clk 0:02:58]} 9... Ne8 {[%clk 0:02:55.9]}
10. Bd5 {[%clk 0:02:58.4]} 10... Bb7 {[%clk 0:02:53.6]} 11. Nxd4 {[%clk
0:02:58.2]} 11... Rb8 {[%clk 0:02:46.8]} 12. Nf5 {[%clk 0:02:53.9]} 12... Bg5
{[%clk 0:02:31.9]} 13. Nc3 {[%clk 0:02:51.3]} 13... Bxc1 {[%clk 0:02:27.2]} 14.
Rxc1 {[%clk 0:02:51.1]} 14... Qg5 {[%clk 0:02:25.6]} 15. Qf3 {[%clk 0:02:35.2]}
15... Nxe5 {[%clk 0:02:16.2]} 16. Qe4 {[%clk 0:02:18.8]} 16... Bxd5 {[%clk
0:01:49.9]} 17. Nxd5 {[%clk 0:02:16.1]} 17... Nc6 {[%clk 0:01:47.2]} 18. h4
{[%clk 0:01:59]} 18... Qd2 {[%clk 0:01:33.7]} 19. Rcd1 {[%clk 0:01:53.9]} 19...
Qa5 {[%clk 0:01:31.2]} 20. Qg4 {[%clk 0:01:38.6]} 20... g6 {[%clk 0:01:00.6]}
21. h5 {[%clk 0:01:24.1]} 21... Kh8 {[%clk 0:00:51.5]} 22. Nh6 {[%clk
0:01:11.4]} 22... Ng7 {[%clk 0:00:37.4]} 23. Nf6 {[%clk 0:01:04.4]} 23... Qxa2
{[%clk 0:00:15.5]} 24. Nxd7 {[%clk 0:00:58.1]} 24... Nxh5 {[%clk 0:00:11.1]} 25.
Nxf8 {[%clk 0:00:54.9]} 25... Rxf8 {[%clk 0:00:10.8]} 26. Qd7 {[%clk 0:00:53.4]}
26... Qc4 {[%clk 0:00:07.7]} 27. b3 {[%clk 0:00:43.6]} 27... Qxc2 {[%clk
0:00:03.2]} 28. Nxf7+ {[%clk 0:00:43.2]} 28... Kg8 {[%clk 0:00:02.2]} 29. Re8
{[%clk 0:00:35.7]} 29... Qc5 {[%clk 0:00:01.4]} 30. Nh6+ {[%clk 0:00:20.2]}
30... Kh8 {[%clk 0:00:01.2]} 31. Qf7 {[%clk 0:00:18.1]} 1-0

[Event "Early-Titled-Tuesday-Blitz-July-09-2024"]
[Site "Chess.com"]
[Date "2024.07.09"]
[Round "3"]
[White "Flawless_Fighter"]
[Black "paranoyak"]
[Result "1-0"]
[WhiteElo "2800"]
[BlackElo "2554"]
[TimeControl "180+1"]
[EndTime "8:29:20 PDT"]
[Termination "Flawless_Fighter won by resignation"]

1. Nf3 {[%clk 0:03:00.9]} 1... Nc6 {[%clk 0:02:58.3]} 2. d4 {[%clk 0:03:00.1]}
2... d5 {[%clk 0:02:58.5]} 3. g3 {[%clk 0:03:00.6]} 3... Bf5 {[%clk 0:02:58.3]}
4. Bg2 {[%clk 0:03:01]} 4... Nb4 {[%clk 0:02:58.1]} 5. Na3 {[%clk 0:03:00.7]}
5... e6 {[%clk 0:02:58.5]} 6. O-O {[%clk 0:03:00.5]} 6... c5 {[%clk 0:02:58.6]}
7. c3 {[%clk 0:02:59]} 7... Nc6 {[%clk 0:02:58.7]} 8. Nc2 {[%clk 0:02:50.1]}
8... Nf6 {[%clk 0:02:58.8]} 9. Bg5 {[%clk 0:02:45.3]} 9... Be7 {[%clk
0:02:58.5]} 10. Bxf6 {[%clk 0:02:39.8]} 10... Bxf6 {[%clk 0:02:39.4]} 11. dxc5
{[%clk 0:02:38.9]} 11... Qe7 {[%clk 0:02:40.1]} 12. Ncd4 {[%clk 0:02:35.6]}
12... Be4 {[%clk 0:02:29.8]} 13. b4 {[%clk 0:02:32.3]} 13... O-O {[%clk
0:02:27.5]} 14. Nxc6 {[%clk 0:02:29.9]} 14... bxc6 {[%clk 0:02:28.4]} 15. Nd4
{[%clk 0:02:30.4]} 15... Bxg2 {[%clk 0:02:09.9]} 16. Kxg2 {[%clk 0:02:31.3]}
16... Rfc8 {[%clk 0:02:10.3]} 17. Qa4 {[%clk 0:02:28.1]} 17... Qb7 {[%clk
0:01:58.2]} 18. Rab1 {[%clk 0:02:23.7]} 18... Rab8 {[%clk 0:01:58.5]} 19. e3
{[%clk 0:02:19.7]} 19... g6 {[%clk 0:01:57.1]} 20. h4 {[%clk 0:02:19.3]} 20...
e5 {[%clk 0:01:53]} 21. Nb3 {[%clk 0:02:16.3]} 21... Qb5 {[%clk 0:01:31.7]} 22.
Qxb5 {[%clk 0:02:15.6]} 22... Rxb5 {[%clk 0:01:32.4]} 23. a4 {[%clk 0:02:15.7]}
23... Rbb8 {[%clk 0:01:32]} 24. a5 {[%clk 0:02:16]} 24... a6 {[%clk 0:01:29.6]}
25. Nc1 {[%clk 0:02:08]} 25... Bg7 {[%clk 0:01:24.7]} 26. Nd3 {[%clk 0:02:07.3]}
26... Re8 {[%clk 0:01:23]} 27. Nb2 {[%clk 0:02:02.3]} 27... f5 {[%clk
0:01:16.9]} 28. Na4 {[%clk 0:02:01.7]} 28... h6 {[%clk 0:01:15.6]} 29. Nb6
{[%clk 0:02:01.2]} 29... g5 {[%clk 0:01:11.2]} 30. hxg5 {[%clk 0:02:00.8]} 30...
hxg5 {[%clk 0:01:12.1]} 31. Rfd1 {[%clk 0:02:00.9]} 31... f4 {[%clk 0:01:09.2]}
32. c4 {[%clk 0:01:51.7]} 32... d4 {[%clk 0:00:41.7]} 33. gxf4 {[%clk
0:01:44.2]} 33... dxe3 {[%clk 0:00:37.2]} 34. fxg5 {[%clk 0:01:39.6]} 34... exf2
{[%clk 0:00:34]} 35. Kxf2 {[%clk 0:01:38]} 35... e4 {[%clk 0:00:24.5]} 36. Ke3
{[%clk 0:01:37.9]} 36... Rb7 {[%clk 0:00:14.3]} 37. Rd7 {[%clk 0:01:37.3]} 37...
Rbb8 {[%clk 0:00:11.4]} 38. Rf1 {[%clk 0:01:36.3]} 38... Bb2 {[%clk 0:00:12]}
39. g6 {[%clk 0:01:33.8]} 39... Re6 {[%clk 0:00:11.3]} 40. g7 {[%clk 0:01:27.5]}
40... Rg6 {[%clk 0:00:08.5]} 41. Rf8+ {[%clk 0:01:23.3]} 41... Rxf8 {[%clk
0:00:08.2]} 42. gxf8=Q+ {[%clk 0:01:24.2]} 42... Kxf8 {[%clk 0:00:09.1]} 43.
Kxe4 {[%clk 0:01:20.6]} 43... Bc3 {[%clk 0:00:09.7]} 44. Rb7 {[%clk 0:01:13.4]}
44... Bxb4 {[%clk 0:00:05.8]} 45. Nd7+ {[%clk 0:01:13.6]} 45... Ke8 {[%clk
0:00:06.2]} 46. Ne5 {[%clk 0:01:14.3]} 46... Rh6 {[%clk 0:00:02.9]} 47. Rxb4
{[%clk 0:01:13.8]} 47... Ke7 {[%clk 0:00:03.5]} 48. Rb6 {[%clk 0:01:12.2]} 48...
Rh4+ {[%clk 0:00:03.1]} 49. Kf5 {[%clk 0:01:08.7]} 49... Rh5+ {[%clk 0:00:02.5]}
50. Kf4 {[%clk 0:01:09.1]} 50... Rh4+ {[%clk 0:00:02.7]} 51. Kg5 {[%clk
0:01:08.2]} 51... Re4 {[%clk 0:00:02]} 52. Kf5 {[%clk 0:01:08.2]} 52... Rh4
{[%clk 0:00:02]} 53. Rxa6 {[%clk 0:01:07.7]} 1-0

[Event "Early-Titled-Tuesday-Blitz-July-09-2024"]
[Site "Chess.com"]
[Date "2024.07.09"]
[Round "3"]
[White "zacachess"]
[Black "Statham_01"]
[Result "1-0"]
[WhiteElo "2477"]
[BlackElo "2665"]
[TimeControl "180+1"]
[EndTime "8:29:20 PDT"]
[Termination "zacachess won by checkmate"]

1. e4 {[%clk 0:02:58.8]} 1... e5 {[%clk 0:03:00.2]} 2. Nf3 {[%clk 0:02:57.6]}
2... Nf6 {[%clk 0:03:00.7]} 3. d4 {[%clk 0:02:54.5]} 3... Nxe4 {[%clk
0:03:00.9]} 4. Bd3 {[%clk 0:02:54.4]} 4... d5 {[%clk 0:03:00.5]} 5. Nxe5 {[%clk
0:02:54.6]} 5... Nd7 {[%clk 0:03:00.9]} 6. Nc3 {[%clk 0:02:54.4]} 6... Bd6
{[%clk 0:03:00.3]} 7. Nxe4 {[%clk 0:02:29]} 7... Nxe5 {[%clk 0:02:51.7]} 8.
Nxd6+ {[%clk 0:02:21]} 8... cxd6 {[%clk 0:02:50.5]} 9. dxe5 {[%clk 0:02:20.9]}
9... dxe5 {[%clk 0:02:51.4]} 10. O-O {[%clk 0:02:18.5]} 10... O-O {[%clk
0:02:51.7]} 11. Re1 {[%clk 0:02:01.1]} 11... Qf6 {[%clk 0:02:51.5]} 12. Qh5
{[%clk 0:01:42.5]} 12... e4 {[%clk 0:02:51.5]} 13. Bf1 {[%clk 0:01:41.7]} 13...
Bf5 {[%clk 0:02:50.1]} 14. c3 {[%clk 0:01:31.6]} 14... Bg6 {[%clk 0:02:44.5]}
15. Qxd5 {[%clk 0:01:28.5]} 15... Rad8 {[%clk 0:02:44.6]} 16. Qg5 {[%clk
0:01:24]} 16... Qb6 {[%clk 0:02:40.1]} 17. Qb5 {[%clk 0:01:20.8]} 17... Qc7
{[%clk 0:02:34.9]} 18. Be3 {[%clk 0:01:18.7]} 18... a6 {[%clk 0:02:35.1]} 19.
Qc5 {[%clk 0:01:16.7]} 19... Qb8 {[%clk 0:02:30.6]} 20. Rad1 {[%clk 0:01:15.6]}
20... Rc8 {[%clk 0:02:31]} 21. Qd6 {[%clk 0:01:14.2]} 21... Qa8 {[%clk
0:02:31.5]} 22. Be2 {[%clk 0:01:02.4]} 22... b5 {[%clk 0:02:31.2]} 23. h4 {[%clk
0:00:55.7]} 23... h6 {[%clk 0:02:15.5]} 24. Bd4 {[%clk 0:00:45.6]} 24... Qb7
{[%clk 0:02:05.7]} 25. Qg3 {[%clk 0:00:41.7]} 25... h5 {[%clk 0:01:47.4]} 26.
Bxh5 {[%clk 0:00:40.7]} 26... Rc6 {[%clk 0:01:48.1]} 27. Be2 {[%clk 0:00:34.9]}
27... f5 {[%clk 0:01:47.2]} 28. h5 {[%clk 0:00:25.9]} 28... f4 {[%clk
0:01:47.8]} 29. Qg5 {[%clk 0:00:25.9]} 29... Bh7 {[%clk 0:01:40]} 30. Bg4 {[%clk
0:00:19.3]} 30... Qf7 {[%clk 0:01:21]} 31. Be5 {[%clk 0:00:19.3]} 31... Rc7
{[%clk 0:00:35.8]} 32. Bxc7 {[%clk 0:00:18.7]} 32... Qxc7 {[%clk 0:00:36.7]} 33.
Rd7 {[%clk 0:00:19]} 33... Qxd7 {[%clk 0:00:32.1]} 34. Bxd7 {[%clk 0:00:19.9]}
34... e3 {[%clk 0:00:32.4]} 35. Be6+ {[%clk 0:00:20]} 35... Kh8 {[%clk
0:00:32.6]} 36. fxe3 {[%clk 0:00:20.3]} 36... fxe3 {[%clk 0:00:32.9]} 37. Rxe3
{[%clk 0:00:21.2]} 37... Re8 {[%clk 0:00:32.4]} 38. Rg3 {[%clk 0:00:21.2]} 38...
Rf8 {[%clk 0:00:33]} 39. Qxg7# {[%clk 0:00:21.1]} 1-0

[Event "Early-Titled-Tuesday-Blitz-July-09-2024"]
[Site "Chess.com"]
[Date "2024.07.09"]
[Round "3"]
[White "yaguigor"]
[Black "AlexandraSamaganova"]
[Result "1-0"]
[WhiteElo "2600"]
[BlackElo "2371"]
[TimeControl "180+1"]
[EndTime "8:29:25 PDT"]
[Termination "yaguigor won on time"]

1. Nf3 {[%clk 0:03:00.9]} 1... c5 {[%clk 0:02:59.5]} 2. e4 {[%clk 0:02:59.3]}
2... e6 {[%clk 0:02:59.2]} 3. d4 {[%clk 0:02:58]} 3... cxd4 {[%clk 0:02:59.5]}
4. Nxd4 {[%clk 0:02:58.6]} 4... a6 {[%clk 0:02:58.6]} 5. Bd3 {[%clk 0:02:57.3]}
5... Bc5 {[%clk 0:02:57.5]} 6. Nb3 {[%clk 0:02:56.7]} 6... Be7 {[%clk
0:02:57.1]} 7. Qg4 {[%clk 0:02:54.8]} 7... g6 {[%clk 0:02:40.7]} 8. Qe2 {[%clk
0:02:54.7]} 8... d6 {[%clk 0:02:38.7]} 9. O-O {[%clk 0:02:51.7]} 9... Nc6 {[%clk
0:02:35.2]} 10. c4 {[%clk 0:02:51.4]} 10... Bf6 {[%clk 0:02:34]} 11. Nc3 {[%clk
0:02:50.2]} 11... Nge7 {[%clk 0:02:33.7]} 12. Bh6 {[%clk 0:02:49.2]} 12... Ng8
{[%clk 0:02:33.6]} 13. Be3 {[%clk 0:02:43.8]} 13... Nge7 {[%clk 0:02:31.4]} 14.
Rac1 {[%clk 0:02:42]} 14... O-O {[%clk 0:02:28.2]} 15. f4 {[%clk 0:02:40.2]}
15... Bg7 {[%clk 0:02:24]} 16. Rfd1 {[%clk 0:02:30.4]} 16... Bd7 {[%clk
0:01:39.7]} 17. Qf2 {[%clk 0:02:22.2]} 17... Nc8 {[%clk 0:01:17.6]} 18. c5
{[%clk 0:02:17.8]} 18... Nb4 {[%clk 0:00:36.8]} 19. Bb1 {[%clk 0:02:05.7]} 19...
d5 {[%clk 0:00:21.1]} 20. a3 {[%clk 0:01:55.3]} 20... Nc6 {[%clk 0:00:21.2]} 21.
exd5 {[%clk 0:01:54.3]} 21... exd5 {[%clk 0:00:21.6]} 22. Nxd5 {[%clk
0:01:54.2]} 22... Re8 {[%clk 0:00:14.1]} 23. h3 {[%clk 0:01:40.1]} 23... N6e7
{[%clk 0:00:05.9]} 24. Nb6 {[%clk 0:01:27.2]} 24... Nxb6 {[%clk 0:00:05.3]} 25.
cxb6 {[%clk 0:01:28.1]} 25... Rc8 {[%clk 0:00:04.2]} 26. Nc5 {[%clk 0:01:25.6]}
26... Rxc5 {[%clk 0:00:02.4]} 27. Bxc5 {[%clk 0:01:20.9]} 27... Nc6 {[%clk
0:00:02.6]} 28. Qd2 {[%clk 0:00:53.3]} 28... Be6 {[%clk 0:00:01.9]} 29. Qxd8
{[%clk 0:00:50.2]} 29... Rxd8 {[%clk 0:00:02.8]} 30. Rxd8+ {[%clk 0:00:49.1]}
30... Nxd8 {[%clk 0:00:03.7]} 31. Be4 {[%clk 0:00:35]} 31... Bf8 {[%clk
0:00:02.1]} 32. b4 {[%clk 0:00:29.4]} 32... Kg7 {[%clk 0:00:01.3]} 33. Bd4+
{[%clk 0:00:23.2]} 1-0

[Event "Early-Titled-Tuesday-Blitz-July-09-2024"]
[Site "Chess.com"]
[Date "2024.07.09"]
[Round "3"]
[White "mouseslips_are_the_best"]
[Black "Lady_Nika"]
[Result "1-0"]
[WhiteElo "2324"]
[BlackElo "2515"]
[TimeControl "180+1"]
[EndTime "8:29:30 PDT"]
[Termination "mouseslips_are_the_best won by resignation"]

1. e4 {[%clk 0:03:00.9]} 1... b6 {[%clk 0:02:58.7]} 2. d4 {[%clk 0:02:59.8]}
2... Bb7 {[%clk 0:02:58.9]} 3. Bd3 {[%clk 0:03:00.4]} 3... e6 {[%clk 0:02:59]}
4. Nf3 {[%clk 0:02:58.1]} 4... d5 {[%clk 0:02:58.3]} 5. e5 {[%clk 0:02:57.9]}
5... c5 {[%clk 0:02:57.8]} 6. c3 {[%clk 0:02:55.7]} 6... Nc6 {[%clk 0:02:57.9]}
7. O-O {[%clk 0:02:54.9]} 7... Nge7 {[%clk 0:02:57.2]} 8. Na3 {[%clk 0:02:54.6]}
8... cxd4 {[%clk 0:02:56.7]} 9. cxd4 {[%clk 0:02:53.4]} 9... Ng6 {[%clk
0:02:55.1]} 10. Nc2 {[%clk 0:02:53]} 10... Be7 {[%clk 0:02:55.2]} 11. g3 {[%clk
0:02:51]} 11... a6 {[%clk 0:02:47.6]} 12. h4 {[%clk 0:02:51.3]} 12... b5 {[%clk
0:02:45.8]} 13. Re1 {[%clk 0:02:45.8]} 13... Nf8 {[%clk 0:02:41.8]} 14. Kg2
{[%clk 0:02:44.3]} 14... Nd7 {[%clk 0:02:41.7]} 15. Be3 {[%clk 0:02:37.7]} 15...
Nb4 {[%clk 0:02:40.6]} 16. Nxb4 {[%clk 0:02:33.8]} 16... Bxb4 {[%clk 0:02:40.5]}
17. Bd2 {[%clk 0:02:32.3]} 17... Be7 {[%clk 0:02:35]} 18. h5 {[%clk 0:02:28.6]}
18... h6 {[%clk 0:02:34]} 19. Rc1 {[%clk 0:02:28]} 19... Nb6 {[%clk 0:02:29]}
20. b3 {[%clk 0:02:23.7]} 20... b4 {[%clk 0:02:19.1]} 21. Qe2 {[%clk 0:02:19.4]}
21... Qd7 {[%clk 0:02:18.4]} 22. Rc2 {[%clk 0:02:14.5]} 22... O-O {[%clk
0:02:17.8]} 23. Rcc1 {[%clk 0:02:10]} 23... a5 {[%clk 0:01:59.4]} 24. Bb1 {[%clk
0:02:07.2]} 24... Ba6 {[%clk 0:01:53.6]} 25. Qe3 {[%clk 0:02:06.5]} 25... a4
{[%clk 0:01:51.3]} 26. Qf4 {[%clk 0:02:01.9]} 26... f5 {[%clk 0:01:43.6]} 27.
exf6 {[%clk 0:01:56.5]} 27... Rxf6 {[%clk 0:01:43.6]} 28. Qg4 {[%clk 0:01:56]}
28... Raf8 {[%clk 0:01:41.9]} 29. Bf4 {[%clk 0:01:55.8]} 29... Bd6 {[%clk
0:01:37.3]} 30. Ne5 {[%clk 0:01:48.6]} 30... Qb7 {[%clk 0:01:14.9]} 31. Ng6
{[%clk 0:01:31.4]} 31... Bxf4 {[%clk 0:01:14.8]} 32. gxf4 {[%clk 0:01:12.9]}
32... Re8 {[%clk 0:01:10.5]} 33. f5 {[%clk 0:01:09.4]} 33... axb3 {[%clk
0:00:47.1]} 34. axb3 {[%clk 0:01:06.1]} 34... Qb8 {[%clk 0:00:15.6]} 35. fxe6
{[%clk 0:00:49.5]} 35... Qd6 {[%clk 0:00:14.9]} 36. Ne5 {[%clk 0:00:41]} 36...
Qxe6 {[%clk 0:00:11.7]} 37. Qxe6+ {[%clk 0:00:36.8]} 37... Rfxe6 {[%clk
0:00:11.8]} 38. Bg6 {[%clk 0:00:35.8]} 38... Rc8 {[%clk 0:00:10.8]} 39. Bf7+
{[%clk 0:00:33.5]} 39... Kf8 {[%clk 0:00:10.1]} 40. Bxe6 {[%clk 0:00:34.4]}
40... Rxc1 {[%clk 0:00:10.1]} 41. Rxc1 {[%clk 0:00:34.8]} 41... Ke7 {[%clk
0:00:10.7]} 42. Rc6 {[%clk 0:00:34.1]} 1-0